fUSD/lending_fUSD_20240728
["ID","MTS","AMOUNT","RATE_DAILY","PERIOD"]
[333453949,1722139838337,-83.58033584,0.00010999,2]
[333453951,1722139838347,-500.0,0.00010999,2]
[333453953,1722139838356,-548.02,0.00010999,2]
[333453955,1722139838365,-500.0,0.00010999,2]
[333453957,1722139838374,-229.11573921,0.00010999,2]
[333453958,1722139838384,-548.02,0.00010999,2]
[333453959,1722139838393,-500.0,0.00010999,2]
[333453960,1722139838403,-548.02,0.00010999,2]
[333453961,1722139838412,-642.64770396,0.00010999,2]
[333453962,1722139838421,-548.02,0.00010999,2]
[333453963,1722139838432,-548.02,0.00010999,2]
[333453964,1722139838441,-548.02,0.00010999,2]
[333453965,1722139838452,-548.02,0.00010999,2]
[333453966,1722139838462,-548.02,0.00010999,2]
[333453967,1722139838473,-53.26510567,0.00010999,2]
[333453968,1722139838486,-448.7075297,0.00010999,2]
[333453969,1722139838497,-46.04736463,0.00010999,2]
[333453970,1722139838506,-548.02,0.00010999,2]
[333453971,1722139838516,-548.02,0.00010999,2]
[333453972,1722139838525,-548.02,0.00010999,2]
[333453973,1722139838534,-548.02,0.00010999,2]
[333453974,1722139838544,-548.02,0.00010999,2]
[333453975,1722139838553,-500.0,0.00010999,2]
[333453976,1722139838562,-493.76249038,0.00010999,2]
[333453977,1722139838571,-548.12,0.00010999,2]
[333453978,1722139838581,-510.94345583,0.00010999,2]
[333453979,1722139838591,-509.54048201,0.00010999,2]
[333453980,1722139838601,-500.0,0.00010999,2]
[333453981,1722139838611,-500.0,0.00010999,2]
[333453982,1722139838621,-143.33620715,0.00010999,2]
[333453983,1722139838635,-356.66379285,0.00010999,2]
[333453984,1722139838647,-500.0,0.00010999,2]
[333453985,1722139838656,-500.0,0.00010999,2]
[333453986,1722139838669,-298.84720715,0.00010999,2]
[333453987,1722139838682,-143.94806893,0.00010999,2]
[333453988,1722139838691,-428.90987827,0.00010999,2]
[333453989,1722139838702,-37.23504693,0.00010999,2]
[333453990,1722139838719,-462.76495307,0.00010999,2]
[333453991,1722139838728,-500.0,0.00010999,2]
[333453992,1722139838738,-500.0,0.00010999,2]
[333453993,1722139838747,-500.0,0.00010999,2]
[333453994,1722139838758,-500.0,0.00010999,2]
[333453995,1722139838767,-557.85153576,0.00010999,2]
[333453996,1722139838778,-500.0,0.00010999,2]
[333453997,1722139838788,-357.80784448,0.00010999,2]
[333453998,1722139838799,-500.0,0.00010999,2]
[333453999,1722139838808,-500.0,0.00010999,2]
[333454000,1722139838819,-500.0,0.00010999,2]
[333454001,1722139838829,-500.0,0.00010999,2]
[333454002,1722139838839,-209.59866267,0.00010999,2]
[333454003,1722139838850,-500.0,0.00010999,2]
[333454004,1722139838860,-500.0,0.00010999,2]
[333454005,1722139838871,-500.0,0.00010999,2]
[333454006,1722139838880,-509.1305566,0.00010999,2]
[333454007,1722139838890,-500.0,0.00010999,2]
[333454008,1722139838901,-500.0,0.00010999,2]
[333454009,1722139838911,-500.0,0.00010999,2]
[333454010,1722139838923,-500.0,0.00010999,2]
[333454011,1722139838933,-500.0,0.00010999,2]
[333454012,1722139838943,-500.0,0.00010999,2]
[333454013,1722139838953,-394.34582042,0.00010999,2]
[333454014,1722139838965,-153.81417958,0.00010999,2]
[333454015,1722139838975,-507.27074527,0.00010999,2]
[333454016,1722139838984,-361.20603533,0.00010999,2]
[333454020,1722139839855,-138.79396467,0.00010999,2]
[333454022,1722139839864,-500.0,0.00010999,2]
[333454024,1722139839873,-241.96476586,0.00010999,2]
[333454028,1722139839909,-258.03523414,0.00010999,2]
[333454030,1722139839924,-500.0,0.00010999,2]
[333454032,1722139839933,-500.0,0.00010999,2]
[333454034,1722139839943,-500.0,0.00010999,2]
[333454036,1722139839952,-509.900526,0.00010999,2]
[333454038,1722139839962,-543.41880757,0.00010999,2]
[333454039,1722139839971,-299.17288483,0.00010999,2]
[333454040,1722139839981,-500.0,0.00010999,2]
[333454041,1722139839992,-505.70718202,0.00010999,2]
[333454042,1722139840002,-500.0,0.00010999,2]
[333454044,1722139840011,-500.0,0.00010999,2]
[333454046,1722139840020,-579.05504502,0.00010999,2]
[333454048,1722139840030,-112.14808746,0.00010999,2]
[333454050,1722139840048,-381.23733486,0.00010999,2]
[333454052,1722139840057,-141.57166514,0.00010999,2]
[333454055,1722139840077,-106.65246036,0.00010999,2]
[333454057,1722139840087,-500.0,0.00010999,2]
[333454059,1722139840096,-500.0,0.00010999,2]
[333454061,1722139840105,-500.0,0.00010999,2]
[333454063,1722139840114,-294.97343755,0.00010999,2]
[333454065,1722139840124,-500.0,0.00010999,2]
[333454067,1722139840133,-427.81312517,0.00010999,2]
[333454069,1722139840143,-500.0,0.00010999,2]
[333454071,1722139840152,-500.0,0.00010999,2]
[333454073,1722139840161,-500.0,0.00010999,2]
[333454075,1722139840171,-500.0,0.00010999,2]
[333454076,1722139840180,-556.70349989,0.00010999,2]
[333454078,1722139840190,-500.0,0.00010999,2]
[333454080,1722139840199,-500.0,0.00010999,2]
[333454082,1722139840208,-511.38092301,0.00010999,2]
[333454084,1722139840218,-500.0,0.00010999,2]
[333454086,1722139840227,-500.0,0.00010999,2]
[333454088,1722139840237,-470.17022022,0.00010999,2]
[333454089,1722139840247,-531.22309409,0.00010999,2]
[333454090,1722139840256,-500.0,0.00010999,2]
[333454091,1722139840266,-500.0,0.00010999,2]
[333454092,1722139840276,-511.30791407,0.00010999,2]
[333454093,1722139840285,-357.82570099,0.00010999,2]
[333454094,1722139840295,-507.46950581,0.00010999,2]
[333454095,1722139840304,-509.28698692,0.00010999,2]
[333454096,1722139840313,-500.0,0.00010999,2]
[333454097,1722139840323,-500.0,0.00010999,2]
[333454098,1722139840332,-500.0,0.00010999,2]
[333454099,1722139840342,-500.0,0.00010999,2]
[333454100,1722139840352,-500.0,0.00010999,2]
[333454101,1722139840361,-500.0,0.00010999,2]
[333454102,1722139840372,-263.66916773,0.00010999,2]
[333454103,1722139840382,-500.0,0.00010999,2]
[333454104,1722139840392,-500.0,0.00010999,2]
[333454105,1722139840402,-508.48342692,0.00010999,2]
[333454106,1722139840413,-500.0,0.00010999,2]
[333454107,1722139840424,-500.0,0.00010999,2]
[333454108,1722139840434,-500.0,0.00010999,2]
[333454109,1722139840444,-500.0,0.00010999,2]
[333454110,1722139840454,-512.4426319,0.00010999,2]
[333454111,1722139840463,-500.0,0.00010999,2]
[333454112,1722139840474,-500.0,0.00010999,2]
[333454113,1722139840483,-514.01277126,0.00010999,2]
[333454114,1722139840493,-500.0,0.00010999,2]
[333454115,1722139840502,-500.0,0.00010999,2]
[333454116,1722139840511,-617.2255474,0.00010999,2]
[333454117,1722139840522,-448.91972861,0.00010999,2]
[333454118,1722139840531,-500.0,0.00010999,2]
[333454119,1722139840543,-465.01260275,0.00010999,2]
[333454120,1722139840554,-579.22570574,0.00010999,2]
[333454121,1722139840565,-534.28436084,0.00010999,2]
[333454122,1722139840575,-500.0,0.00010999,2]
[333454123,1722139840584,-500.0,0.00010999,2]
[333454124,1722139840594,-179.1304725,0.00010999,2]
[333454125,1722139840603,-500.0,0.00010999,2]
[333454126,1722139840613,-500.0,0.00010999,2]
[333454127,1722139840625,-517.47089026,0.00010999,2]
[333454128,1722139840634,-494.93998176,0.00010999,2]
[333454129,1722139840643,-500.0,0.00010999,2]
[333454130,1722139840652,-294.4760248,0.00010999,2]
[333454131,1722139840661,-500.0,0.00010999,2]
[333454132,1722139840671,-500.0,0.00010999,2]
[333454133,1722139840680,-500.0,0.00010999,2]
[333454134,1722139840689,-500.0,0.00010999,2]
[333454135,1722139840699,-500.0,0.00010999,2]
[333454136,1722139840708,-500.0,0.00010999,2]
[333454137,1722139840718,-151.51493467,0.00010999,2]
[333454138,1722139840727,-500.0,0.00010999,2]
[333454139,1722139840737,-512.40653631,0.00010999,2]
[333454140,1722139840746,-568.51283514,0.00010999,2]
[333454141,1722139840756,-500.0,0.00010999,2]
[333454142,1722139840765,-157.02949158,0.00010999,2]
[333454143,1722139840775,-500.0,0.00010999,2]
[333454144,1722139840784,-500.0,0.00010999,2]
[333454145,1722139840793,-500.0,0.00010999,2]
[333454146,1722139840803,-500.0,0.00010999,2]
[333454147,1722139840812,-500.0,0.00010999,2]
[333454148,1722139840822,-500.0,0.00010999,2]
[333454149,1722139840831,-500.0,0.00010999,2]
[333454150,1722139840840,-500.0,0.00010999,2]
[333454151,1722139840849,-500.0,0.00010999,2]
[333454152,1722139840858,-500.0,0.00010999,2]
[333454153,1722139840868,-500.0,0.00010999,2]
[333454154,1722139840877,-500.0,0.00010999,2]
[333454155,1722139840886,-500.0,0.00010999,2]
[333454156,1722139840895,-500.0,0.00010999,2]
[333454157,1722139840904,-500.0,0.00010999,2]
[333454158,1722139840916,-500.0,0.00010999,2]
[333454159,1722139840925,-500.0,0.00010999,2]
[333454160,1722139840934,-318.91715468,0.00010999,2]
[333454161,1722139840943,-500.0,0.00010999,2]
[333454162,1722139840952,-500.0,0.00010999,2]
[333454163,1722139840961,-500.0,0.00010999,2]
[333454164,1722139840970,-500.0,0.00010999,2]
[333454165,1722139840979,-500.0,0.00010999,2]
[333454166,1722139840989,-500.0,0.00010999,2]
[333454167,1722139840998,-500.0,0.00010999,2]
[333454168,1722139841008,-480.1766453,0.00010999,2]
[333454169,1722139841017,-500.0,0.00010999,2]
[333454170,1722139841026,-500.0,0.00010999,2]
[333454171,1722139841036,-500.0,0.00010999,2]
[333454172,1722139841046,-500.0,0.00010999,2]
[333454173,1722139841056,-500.0,0.00010999,2]
[333454174,1722139841067,-500.0,0.00010999,2]
[333454175,1722139841076,-500.0,0.00010999,2]
[333454176,1722139841085,-500.0,0.00010999,2]
[333454177,1722139841096,-500.0,0.00010999,2]
[333454178,1722139841106,-500.0,0.00010999,2]
[333454179,1722139841116,-500.0,0.00010999,2]
[333454180,1722139841126,-500.0,0.00010999,2]
[333454181,1722139841136,-500.0,0.00010999,2]
[333454182,1722139841147,-500.0,0.00010999,2]
[333454183,1722139841157,-500.0,0.00010999,2]
[333454184,1722139841166,-500.0,0.00010999,2]
[333454185,1722139841176,-521.90737306,0.00010999,2]
[333454186,1722139841185,-500.0,0.00010999,2]
[333454187,1722139841194,-500.0,0.00010999,2]
[333454188,1722139841204,-500.0,0.00010999,2]
[333454189,1722139841251,-515.59198143,0.00010999,2]
[333454190,1722139841262,-500.0,0.00010999,2]
[333454191,1722139841271,-500.0,0.00010999,2]
[333454192,1722139841279,-500.0,0.00010999,2]
[333454193,1722139841288,-500.0,0.00010999,2]
[333454194,1722139841297,-529.38776237,0.00010999,2]
[333454195,1722139841306,-500.0,0.00010999,2]
[333454196,1722139841316,-500.0,0.00010999,2]
[333454197,1722139841325,-500.0,0.00010999,2]
[333454198,1722139841334,-177.63,0.00010999,2]
[333454199,1722139841343,-500.0,0.00010999,2]
[333454200,1722139841352,-500.0,0.00010999,2]
[333454201,1722139841361,-500.0,0.00010999,2]
[333454202,1722139841370,-723.98,0.00010999,2]
[333454203,1722139841379,-723.98,0.00010999,2]
[333454204,1722139841389,-723.98,0.00010999,2]
[333454205,1722139841397,-723.98,0.00010999,2]
[333454206,1722139841407,-723.98,0.00010999,2]
[333454207,1722139841416,-723.98,0.00010999,2]
[333454208,1722139841425,-626.42624688,0.00010999,2]
[333454209,1722139841434,-723.98,0.00010999,2]
[333454210,1722139841443,-723.98,0.00010999,2]
[333454211,1722139841452,-723.98,0.00010999,2]
[333454212,1722139841461,-723.98,0.00010999,2]
[333454213,1722139841470,-508.40978223,0.00010999,2]
[333454214,1722139841479,-723.98,0.00010999,2]
[333454215,1722139841490,-723.98,0.00010999,2]
[333454216,1722139841499,-723.98,0.00010999,2]
[333454217,1722139841508,-723.98,0.00010999,2]
[333454218,1722139841517,-723.98,0.00010999,2]
[333454219,1722139841526,-402.54880994,0.00010999,2]
[333454220,1722139841535,-723.98,0.00010999,2]
[333454221,1722139841544,-723.98,0.00010999,2]
[333454222,1722139841553,-723.98,0.00010999,2]
[333454223,1722139841561,-723.98,0.00010999,2]
[333454224,1722139841570,-500.0,0.00010999,2]
[333454225,1722139841579,-723.98,0.00010999,2]
[333454226,1722139841588,-500.0,0.00010999,2]
[333454227,1722139841597,-723.98,0.00010999,2]
[333454228,1722139841606,-500.0,0.00010999,2]
[333454229,1722139841615,-723.98,0.00010999,2]
[333454230,1722139841624,-500.0,0.00010999,2]
[333454231,1722139841633,-723.98,0.00010999,2]
[333454232,1722139841641,-724.14,0.00010999,2]
[333454233,1722139841650,-500.0,0.00010999,2]
[333454234,1722139841659,-450.48478173,0.00010999,2]
[333454235,1722139841669,-500.0,0.00010999,2]
[333454236,1722139841678,-500.0,0.00010999,2]
[333454237,1722139841687,-582.06308845,0.00010999,2]
[333454238,1722139841697,-506.33277012,0.00010999,2]
[333454239,1722139841706,-500.0,0.00010999,2]
[333454240,1722139841715,-500.0,0.00010999,2]
[333454241,1722139841724,-500.0,0.00010999,2]
[333454242,1722139841735,-500.0,0.00010999,2]
[333454243,1722139841745,-500.0,0.00010999,2]
[333454244,1722139841754,-500.0,0.00010999,2]
[333454245,1722139841763,-990.85,0.00010999,2]
[333454246,1722139841772,-635.16,0.00010999,2]
[333454247,1722139841782,-990.85,0.00010999,2]
[333454248,1722139841791,-990.85,0.00010999,2]
[333454249,1722139841800,-990.85,0.00010999,2]
[333454250,1722139841809,-990.85,0.00010999,2]
[333454251,1722139841818,-990.85,0.00010999,2]
[333454252,1722139841827,-990.85,0.00010999,2]
[333454253,1722139841836,-990.85,0.00010999,2]
[333454254,1722139841845,-500.0,0.00010999,2]
[333454255,1722139841854,-990.85,0.00010999,2]
[333454256,1722139841863,-990.85,0.00010999,2]
[333454257,1722139841872,-500.0,0.00010999,2]
[333454258,1722139841881,-990.85,0.00010999,2]
[333454259,1722139841890,-270.05,0.00010999,2]
[333454260,1722139841900,-990.85,0.00010999,2]
[333454261,1722139841909,-540.84406874,0.00010999,2]
[333454262,1722139841922,-990.85,0.00010999,2]
[333454263,1722139841931,-990.85,0.00010999,2]
[333454264,1722139841940,-510.72392244,0.00010999,2]
[333454265,1722139841948,-990.85,0.00010999,2]
[333454266,1722139841957,-990.85,0.00010999,2]
[333454267,1722139841966,-990.85,0.00010999,2]
[333454268,1722139841975,-990.85,0.00010999,2]
[333454269,1722139841984,-990.85,0.00010999,2]
[333454270,1722139841993,-990.85,0.00010999,2]
[333454271,1722139842002,-508.81697164,0.00010999,2]
[333454272,1722139842011,-990.85,0.00010999,2]
[333454273,1722139842019,-990.85,0.00010999,2]
[333454274,1722139842029,-990.85,0.00010999,2]
[333454276,1722139842038,-990.89,0.00010999,2]
[333454278,1722139842046,-500.0,0.00010999,2]
[333454280,1722139842056,-500.0,0.00010999,2]
[333454282,1722139842065,-500.0,0.00010999,2]
[333454284,1722139842074,-500.0,0.00010999,2]
[333454285,1722139842084,-500.0,0.00010999,2]
[333454286,1722139842093,-500.0,0.00010999,2]
[333454287,1722139842102,-500.0,0.00010999,2]
[333454288,1722139842111,-500.0,0.00010999,2]
[333454289,1722139842120,-500.0,0.00010999,2]
[333454290,1722139842129,-500.0,0.00010999,2]
[333454291,1722139842138,-434.47015537,0.00010999,2]
[333454292,1722139842147,-500.0,0.00010999,2]
[333454293,1722139842157,-500.0,0.00010999,2]
[333454294,1722139842166,-500.0,0.00010999,2]
[333454295,1722139842175,-395.3584659,0.00010999,2]
[333454296,1722139842184,-509.02446973,0.00010999,2]
[333454297,1722139842193,-500.0,0.00010999,2]
[333454298,1722139842202,-618.32762888,0.00010999,2]
[333454299,1722139842212,-508.68978164,0.00010999,2]
[333454301,1722139842222,-500.0,0.00010999,2]
[333454303,1722139842231,-501.84505441,0.00010999,2]
[333454304,1722139842240,-506.82371372,0.00010999,2]
[333454305,1722139842250,-500.0,0.00010999,2]
[333454306,1722139842259,-508.96321652,0.00010999,2]
[333454307,1722139842268,-500.0,0.00010999,2]
[333454308,1722139842278,-500.0,0.00010999,2]
[333454309,1722139842288,-500.0,0.00010999,2]
[333454310,1722139842298,-500.0,0.00010999,2]
[333454311,1722139842307,-169.52052233,0.00010999,2]
[333454312,1722139842316,-500.0,0.00010999,2]
[333454313,1722139842325,-500.0,0.00010999,2]
[333454314,1722139842334,-500.0,0.00010999,2]
[333454315,1722139842343,-500.0,0.00010999,2]
[333454316,1722139842352,-500.0,0.00010999,2]
[333454317,1722139842363,-500.0,0.00010999,2]
[333454318,1722139842374,-483.70662601,0.00010999,2]
[333454319,1722139842383,-500.0,0.00010999,2]
[333454320,1722139842392,-500.0,0.00010999,2]
[333454321,1722139842403,-500.0,0.00010999,2]
[333454322,1722139842413,-545.63879386,0.00010999,2]
[333454323,1722139842423,-512.82800601,0.00010999,2]
[333454324,1722139842434,-151.603537,0.00010999,2]
[333454325,1722139842445,-500.0,0.00010999,2]
[333454326,1722139842454,-500.0,0.00010999,2]
[333454327,1722139842463,-323.45183476,0.00010999,2]
[333454328,1722139842474,-500.0,0.00010999,2]
[333454329,1722139842484,-151.0,0.00010999,2]
[333454330,1722139842493,-500.0,0.00010999,2]
[333454331,1722139842503,-151.0,0.00010999,2]
[333454332,1722139842513,-500.0,0.00010999,2]
[333454333,1722139842523,-510.34942219,0.00010999,2]
[333454334,1722139842533,-500.0,0.00010999,2]
[333454335,1722139842542,-500.0,0.00010999,2]
[333454336,1722139842552,-500.0,0.00010999,2]
[333454337,1722139842562,-496.37932292,0.00010999,2]
[333454338,1722139842572,-523.59405342,0.00010999,2]
[333454339,1722139842580,-513.41072724,0.00010999,2]
[333454340,1722139842590,-597.63285594,0.00010999,2]
[333454341,1722139842600,-500.0,0.00010999,2]
[333454342,1722139842609,-204.0971025,0.00010999,2]
[333454343,1722139842619,-507.27292618,0.00010999,2]
[333454345,1722139842628,-329.9907503,0.00010999,2]
[333454347,1722139842638,-510.5634602,0.00010999,2]
[333454349,1722139842647,-507.85651763,0.00010999,2]
[333454350,1722139842656,-512.63339714,0.00010999,2]
[333454351,1722139842665,-509.89354707,0.00010999,2]
[333454352,1722139842674,-500.0,0.00010999,2]
[333454353,1722139842683,-420.77913403,0.00010999,2]
[333454354,1722139842692,-507.05331463,0.00010999,2]
[333454355,1722139842702,-238.77077676,0.00010999,2]
[333454356,1722139842712,-511.31800477,0.00010999,2]
[333454357,1722139842722,-500.0,0.00010999,2]
[333454359,1722139842731,-500.0,0.00010999,2]
[333454361,1722139842741,-500.0,0.00010999,2]
[333454363,1722139842750,-500.0,0.00010999,2]
[333454365,1722139842759,-500.0,0.00010999,2]
[333454367,1722139842768,-216.35129783,0.00010999,2]
[333454368,1722139842778,-302.24269716,0.00010999,2]
[333454369,1722139842787,-512.67769709,0.00010999,2]
[333454370,1722139842796,-500.0,0.00010999,2]
[333454371,1722139842806,-500.0,0.00010999,2]
[333454372,1722139842815,-500.0,0.00010999,2]
[333454373,1722139842824,-415.60782329,0.00010999,2]
[333454374,1722139842835,-622.02504644,0.00010999,2]
[333454375,1722139842846,-503.7728921,0.00010999,2]
[333454376,1722139842855,-508.71880591,0.00010999,2]
[333454377,1722139842866,-500.0,0.00010999,2]
[333454378,1722139842875,-500.0,0.00010999,2]
[333454379,1722139842885,-500.0,0.00010999,2]
[333454380,1722139842895,-500.0,0.00010999,2]
[333454381,1722139842905,-645.92272676,0.00010999,2]
[333454382,1722139842917,-511.66688583,0.00010999,2]
[333454383,1722139842926,-510.30706715,0.00010999,2]
[333454384,1722139842935,-510.64970224,0.00010999,2]
[333454385,1722139842944,-508.45428486,0.00010999,2]
[333454386,1722139842953,-506.59889316,0.00010999,2]
[333454387,1722139842962,-642.31609621,0.00010999,2]
[333454388,1722139842971,-512.78871094,0.00010999,2]
[333454389,1722139842980,-500.0,0.00010999,2]
[333454390,1722139842990,-500.0,0.00010999,2]
[333454391,1722139842999,-500.0,0.00010999,2]
[333454392,1722139843008,-362.94,0.00010999,2]
[333454393,1722139843018,-597.99473656,0.00010999,2]
[333454394,1722139843026,-500.0,0.00010999,2]
[333454395,1722139843036,-500.0,0.00010999,2]
[333454396,1722139843045,-500.0,0.00010999,2]
[333454397,1722139843054,-500.0,0.00010999,2]
[333454398,1722139843063,-279.37,0.00010999,2]
[333454399,1722139843072,-500.0,0.00010999,2]
[333454400,1722139843081,-221.81677714,0.00010999,2]
[333454401,1722139843091,-500.0,0.00010999,2]
[333454402,1722139843100,-363.44306587,0.00010999,2]
[333454403,1722139843109,-591.24960525,0.00010999,2]
[333454404,1722139843118,-506.02020204,0.00010999,2]
[333454405,1722139843128,-500.0,0.00010999,2]
[333454406,1722139843136,-165.49641771,0.00010999,2]
[333454407,1722139843146,-505.1905011,0.00010999,2]
[333454408,1722139843155,-508.44011108,0.00010999,2]
[333454409,1722139843165,-500.0,0.00010999,2]
[333454410,1722139843174,-500.0,0.00010999,2]
[333454411,1722139843183,-500.0,0.00010999,2]
[333454412,1722139843193,-500.0,0.00010999,2]
[333454413,1722139843202,-500.0,0.00010999,2]
[333454414,1722139843213,-500.0,0.00010999,2]
[333454415,1722139843223,-500.0,0.00010999,2]
[333454416,1722139843233,-500.0,0.00010999,2]
[333454417,1722139843244,-500.0,0.00010999,2]
[333454418,1722139843254,-500.0,0.00010999,2]
[333454420,1722139843264,-243.91618472,0.00010999,2]
[333454422,1722139843274,-500.0,0.00010999,2]
[333454424,1722139843283,-500.0,0.00010999,2]
[333454426,1722139843292,-500.0,0.00010999,2]
[333454428,1722139843301,-500.0,0.00010999,2]
[333454430,1722139843310,-500.0,0.00010999,2]
[333454432,1722139843320,-500.0,0.00010999,2]
[333454434,1722139843329,-500.0,0.00010999,2]
[333454435,1722139843338,-500.0,0.00010999,2]
[333454437,1722139843348,-500.0,0.00010999,2]
[333454439,1722139843358,-500.0,0.00010999,2]
[333454441,1722139843367,-620.97,0.00010999,2]
[333454443,1722139843378,-311.47160495,0.00010999,2]
[333454445,1722139843388,-500.0,0.00010999,2]
[333454447,1722139843399,-287.63278253,0.00010999,2]
[333454449,1722139843409,-509.51893212,0.00010999,2]
[333454451,1722139843418,-527.79034378,0.00010999,2]
[333454453,1722139843427,-500.0,0.00010999,2]
[333454455,1722139843437,-158.4,0.00010999,2]
[333454457,1722139843446,-510.51303892,0.00010999,2]
[333454458,1722139843456,-514.06542043,0.00010999,2]
[333454460,1722139843465,-507.47911803,0.00010999,2]
[333454462,1722139843476,-151.260044,0.00010999,2]
[333454464,1722139843487,-151.314383,0.00010999,2]
[333454466,1722139843496,-500.0,0.00010999,2]
[333454468,1722139843507,-210.86,0.00010999,2]
[333454470,1722139843519,-151.826891,0.00010999,2]
[333454472,1722139843528,-516.89385235,0.00010999,2]
[333454474,1722139843537,-310.54023278,0.00010999,2]
[333454476,1722139843547,-151.723278,0.00010999,2]
[333454478,1722139843556,-500.0,0.00010999,2]
[333454480,1722139843566,-500.0,0.00010999,2]
[333454482,1722139843575,-206.52830043,0.00010999,2]
[333454484,1722139843585,-500.0,0.00010999,2]
[333454486,1722139843594,-151.0,0.00010999,2]
[333454488,1722139843603,-245.80404498,0.00010999,2]
[333454490,1722139843612,-152.548892,0.00010999,2]
[333454492,1722139843623,-175.153514,0.00010999,2]
[333454493,1722139843632,-508.91751294,0.00010999,2]
[333454495,1722139843643,-514.58855585,0.00010999,2]
[333454497,1722139843653,-500.0,0.00010999,2]
[333454499,1722139843663,-400.41772079,0.00010999,2]
[333454501,1722139843672,-511.80461746,0.00010999,2]
[333454503,1722139843684,-500.0,0.00010999,2]
[333454505,1722139843694,-361.44701099,0.00010999,2]
[333454506,1722139843703,-500.0,0.00010999,2]
[333454508,1722139843713,-521.23060988,0.00010999,2]
[333454510,1722139843722,-505.12071351,0.00010999,2]
[333454512,1722139843732,-500.0,0.00010999,2]
[333454514,1722139843742,-187.53678063,0.00010999,2]
[333454516,1722139843752,-509.31012055,0.00010999,2]
[333454518,1722139843761,-500.0,0.00010999,2]
[333454520,1722139843770,-386.24137808,0.00010999,2]
[333454522,1722139843779,-151.0,0.00010999,2]
[333454524,1722139843788,-151.0,0.00010999,2]
[333454526,1722139843798,-288.991817,0.00010999,2]
[333454528,1722139843808,-500.0,0.00010999,2]
[333454530,1722139843817,-518.45220089,0.00010999,2]
[333454532,1722139843826,-155.713718,0.00010999,2]
[333454534,1722139843835,-154.16309,0.00010999,2]
[333454536,1722139843845,-152.855269,0.00010999,2]
[333454538,1722139843854,-168.391149,0.00010999,2]
[333454540,1722139843863,-168.391149,0.00010999,2]
[333454542,1722139843872,-168.391149,0.00010999,2]
[333454544,1722139843881,-168.391149,0.00010999,2]
[333454546,1722139843891,-168.391149,0.00010999,2]
[333454548,1722139843900,-168.391149,0.00010999,2]
[333454550,1722139843909,-151.0,0.00010999,2]
[333454552,1722139843923,-4834.7,0.00010999,2]
[333454554,1722139843933,-2000.0,0.00010999,2]
[333454556,1722139843943,-200.0,0.00010999,2]
[333454558,1722139843953,-151.0,0.00010999,2]
[333454560,1722139843962,-151.0,0.00010999,2]
[333454562,1722139843971,-151.0,0.00010999,2]
[333454563,1722139843980,-295.92581,0.00010999,2]
[333454565,1722139843989,-3000.0,0.00010999,2]
[333454567,1722139843998,-315.957354,0.00010999,2]
[333454569,1722139844008,-315.957354,0.00010999,2]
[333454571,1722139844017,-315.957354,0.00010999,2]
[333454573,1722139844027,-151.0,0.00010999,2]
[333454575,1722139844037,-154.064378,0.00010999,2]
[333454577,1722139844047,-315.957354,0.00010999,2]
[333454580,1722139844058,-315.957354,0.00010999,2]
[333454582,1722139844067,-315.957354,0.00010999,2]
[333454584,1722139844076,-153.048421,0.00010999,2]